[Event "Titled Tuesday Blitz June 21 Late 2022"]
[White "Jobava, Baadur"]
[Black "Vasquez Schroeder, Rodrigo"]
[WhiteFideId "13601520"]
[BlackFideId "3400042"]
[WhiteElo "2617"]
[BlackElo "2567"]
[Result "1/2-1/2"]
[Round "03"]
[TimeControl "180+1"]
[Date "2022.06.21"]
[WhiteClock "0:00:35"]
[BlackClock "0:00:10"]

1. e4 {[%clk 0:03:00]}  c5 {[%clk 0:02:57]} 2. c3 {[%clk 0:02:59]}  Nf6 {[%clk 0:02:57]} 3. e5 {[%clk 0:02:59]}  Nd5 {[%clk 0:02:57]} 4. Nf3 {[%clk 0:03:00]}  d6 {[%clk 0:02:57]} 5. exd6 {[%clk 0:02:59]}  Qxd6 {[%clk 0:02:48]} 6. d4 {[%clk 0:02:57]}  cxd4 {[%clk 0:02:40]} 7. Nxd4 {[%clk 0:02:58]}  a6 {[%clk 0:02:40]} 8. Bc4 {[%clk 0:02:56]}  Nf6 {[%clk 0:02:25]} 9. O-O {[%clk 0:02:51]}  Nc6 {[%clk 0:02:25]} 10. Nxc6 {[%clk 0:02:50]}  Qxc6 {[%clk 0:02:25]} 11. Be2 {[%clk 0:02:48]}  e6 {[%clk 0:02:20]} 12. Bf4 {[%clk 0:02:48]}  Be7 {[%clk 0:02:10]} 13. Nd2 {[%clk 0:02:48]}  O-O {[%clk 0:02:09]} 14. Bf3 {[%clk 0:02:48]}  Qb5 {[%clk 0:02:08]} 15. Qb3 {[%clk 0:02:46]}  Qf5 {[%clk 0:02:06]} 16. Bg3 {[%clk 0:02:45]}  Ra7 {[%clk 0:01:57]} 17. a4 {[%clk 0:02:43]}  Bc5 {[%clk 0:01:46]} 18. a5 {[%clk 0:02:40]}  Bd7 {[%clk 0:01:42]} 19. Rfd1 {[%clk 0:02:30]}  Bb5 {[%clk 0:01:34]} 20. h3 {[%clk 0:02:23]}  e5 {[%clk 0:01:30]} 21. Re1 {[%clk 0:02:22]}  Re8 {[%clk 0:01:30]} 22. Ne4 {[%clk 0:02:19]}  Nxe4 {[%clk 0:01:27]} 23. Bxe4 {[%clk 0:02:20]}  Qf6 {[%clk 0:01:23]} 24. Rad1 {[%clk 0:02:16]}  h6 {[%clk 0:01:22]} 25. Qc2 {[%clk 0:02:12]}  Bc6 {[%clk 0:01:08]} 26. b4 {[%clk 0:02:12]}  Bf8 {[%clk 0:01:03]} 27. Bh7+ {[%clk 0:02:01]}  Kh8 {[%clk 0:01:03]} 28. Qf5 {[%clk 0:02:02]}  Qxf5 {[%clk 0:00:55]} 29. Bxf5 {[%clk 0:02:03]}  f6 {[%clk 0:00:55]} 30. Bd7 {[%clk 0:02:01]}  Re7 {[%clk 0:00:49]} 31. Bxc6 {[%clk 0:01:59]}  bxc6 {[%clk 0:00:50]} 32. Rd8 {[%clk 0:01:58]}  Kg8 {[%clk 0:00:50]} 33. f4 {[%clk 0:01:57]}  exf4 {[%clk 0:00:43]} 34. Rxe7 {[%clk 0:01:58]}  Rxe7 {[%clk 0:00:42]} 35. Bxf4 {[%clk 0:01:59]}  Kf7 {[%clk 0:00:41]} 36. Ra8 {[%clk 0:01:51]}  Re4 {[%clk 0:00:41]} 37. Bb8 {[%clk 0:01:18]}  c5 {[%clk 0:00:40]} 38. Ra7+ {[%clk 0:01:13]}  Kg6 {[%clk 0:00:39]} 39. Rxa6 {[%clk 0:01:08]}  cxb4 {[%clk 0:00:39]} 40. cxb4 {[%clk 0:01:08]}  Bxb4 {[%clk 0:00:35]} 41. Kh2 {[%clk 0:00:53]}  Rc4 {[%clk 0:00:25]} 42. Bd6 {[%clk 0:00:49]}  Bxd6+ {[%clk 0:00:20]} 43. Rxd6 {[%clk 0:00:50]}  Ra4 {[%clk 0:00:21]} 44. a6 {[%clk 0:00:51]}  h5 {[%clk 0:00:21]} 45. Kg3 {[%clk 0:00:50]}  Kf5 {[%clk 0:00:21]} 46. Rb6 {[%clk 0:00:47]}  g5 {[%clk 0:00:21]} 47. Kf3 {[%clk 0:00:41]}  Ra3+ {[%clk 0:00:21]} 48. Ke2 {[%clk 0:00:41]}  Ke5 {[%clk 0:00:19]} 49. Kd2 {[%clk 0:00:38]}  f5 {[%clk 0:00:17]} 50. Kc2 {[%clk 0:00:37]}  Kf4 {[%clk 0:00:17]} 51. Kb2 {[%clk 0:00:36]}  Ra5 {[%clk 0:00:17]} 52. Rb4+ {[%clk 0:00:36]}  Kg3 {[%clk 0:00:17]} 53. Rb3+ {[%clk 0:00:36]}  Kxg2 {[%clk 0:00:17]} 54. Ra3 {[%clk 0:00:37]}  Rb5+ {[%clk 0:00:17]} 55. Kc2 {[%clk 0:00:37]}  Rb8 {[%clk 0:00:17]} 56. a7 {[%clk 0:00:38]}  Ra8 {[%clk 0:00:17]} 57. Ra5 {[%clk 0:00:36]}  Kxh3 {[%clk 0:00:16]} 58. Rxf5 {[%clk 0:00:37]}  Rxa7 {[%clk 0:00:15]} 59. Rxg5 {[%clk 0:00:36]}  h4 {[%clk 0:00:15]} 60. Kd2 {[%clk 0:00:37]}  Re7 {[%clk 0:00:16]} 61. Rg8 {[%clk 0:00:36]}  Kh2 {[%clk 0:00:16]} 62. Rg6 {[%clk 0:00:37]}  h3 {[%clk 0:00:16]} 63. Rg8 {[%clk 0:00:37]}  Kh1 {[%clk 0:00:15]} 64. Rg6 {[%clk 0:00:38]}  Re4 {[%clk 0:00:15]} 65. Rg8 {[%clk 0:00:37]}  Kh2 {[%clk 0:00:14]} 66. Rg7 {[%clk 0:00:37]}  Ra4 {[%clk 0:00:14]} 67. Ke2 {[%clk 0:00:37]}  Ra2+ {[%clk 0:00:14]} 68. Kf1 {[%clk 0:00:37]}  Rg2 {[%clk 0:00:14]} 69. Rh7 {[%clk 0:00:38]}  Rg4 {[%clk 0:00:13]} 70. Rf7 {[%clk 0:00:36]}  Kh1 {[%clk 0:00:12]} 71. Rf8 {[%clk 0:00:36]}  Ra4 {[%clk 0:00:11]} 72. Rg8 {[%clk 0:00:36]}  Ra1+ {[%clk 0:00:11]} 73. Kf2 {[%clk 0:00:36]}  Kh2 {[%clk 0:00:11]} 74. Rg7 {[%clk 0:00:36]}  Ra2+ {[%clk 0:00:12]} 75. Kf1 {[%clk 0:00:36]}  Rg2 {[%clk 0:00:12]} 76. Rh7 {[%clk 0:00:35]}  Rg3 {[%clk 0:00:12]} 77. Rf7 {[%clk 0:00:35]}  Rg4 {[%clk 0:00:12]} 78. Kf2 {[%clk 0:00:35]}  Rg1 {[%clk 0:00:10]} 79. Rh7 {[%clk 0:00:35]}  Rg2+ {[%clk 0:00:10]} 80. Kf1 {[%clk 0:00:35]} 1/2-1/2


[Site "https://www.chess.com"]

[Event "Titled Tuesday Blitz June 21 Late 2022"]
[White "Khabinets, Ivan"]
[Black "Reprintsev, Alexander"]
[WhiteFideId "14115980"]
[BlackFideId "14100541"]
[WhiteElo "2114"]
[BlackElo "2108"]
[Result "1-0"]
[Round "03"]
[TimeControl "180+1"]
[Date "2022.06.22"]
[WhiteClock "0:01:28"]
[BlackClock "0:00:08"]

1. c4 {[%clk 0:03:00]}  e5 {[%clk 0:02:58]} 2. Nc3 {[%clk 0:02:53]}  Nc6 {[%clk 0:02:58]} 3. Nf3 {[%clk 0:02:54]}  Bb4 {[%clk 0:02:54]} 4. Nd5 {[%clk 0:02:52]}  e4 {[%clk 0:02:49]} 5. Nxb4 {[%clk 0:02:49]}  Nxb4 {[%clk 0:02:44]} 6. Nd4 {[%clk 0:02:49]}  Nf6 {[%clk 0:02:39]} 7. d3 {[%clk 0:02:43]}  exd3 {[%clk 0:02:32]} 8. exd3 {[%clk 0:02:43]}  O-O {[%clk 0:02:28]} 9. Be2 {[%clk 0:02:42]}  d5 {[%clk 0:02:28]} 10. a3 {[%clk 0:02:41]}  Nc6 {[%clk 0:02:27]} 11. Nxc6 {[%clk 0:02:34]}  bxc6 {[%clk 0:02:26]} 12. O-O {[%clk 0:02:35]}  Qd6 {[%clk 0:02:11]} 13. Be3 {[%clk 0:02:31]}  d4 {[%clk 0:02:01]} 14. Bg5 {[%clk 0:02:28]}  c5 {[%clk 0:01:53]} 15. b4 {[%clk 0:02:21]}  Nd7 {[%clk 0:01:25]} 16. Re1 {[%clk 0:02:14]}  Bb7 {[%clk 0:01:23]} 17. Bf3 {[%clk 0:02:09]}  Bxf3 {[%clk 0:01:21]} 18. Qxf3 {[%clk 0:02:10]}  Rae8 {[%clk 0:01:12]} 19. b5 {[%clk 0:02:07]}  Ne5 {[%clk 0:01:03]} 20. Qg3 {[%clk 0:02:07]}  Ng6 {[%clk 0:00:56]} 21. Kf1 {[%clk 0:02:00]}  f6 {[%clk 0:00:55]} 22. Bd2 {[%clk 0:01:58]}  Kf7 {[%clk 0:00:52]} 23. Qh3 {[%clk 0:01:50]}  h6 {[%clk 0:00:47]} 24. Qh5 {[%clk 0:01:49]}  Re5 {[%clk 0:00:46]} 25. Rxe5 {[%clk 0:01:49]}  Qxe5 {[%clk 0:00:46]} 26. Qh3 {[%clk 0:01:46]}  Qe6 {[%clk 0:00:42]} 27. Qxe6+ {[%clk 0:01:44]}  Kxe6 {[%clk 0:00:42]} 28. Re1+ {[%clk 0:01:44]}  Kd7 {[%clk 0:00:39]} 29. f4 {[%clk 0:01:45]}  a6 {[%clk 0:00:37]} 30. a4 {[%clk 0:01:38]}  Ra8 {[%clk 0:00:32]} 31. a5 {[%clk 0:01:38]}  Ne7 {[%clk 0:00:30]} 32. g4 {[%clk 0:01:36]}  f5 {[%clk 0:00:27]} 33. h3 {[%clk 0:01:36]}  fxg4 {[%clk 0:00:23]} 34. hxg4 {[%clk 0:01:36]}  c6 {[%clk 0:00:22]} 35. b6 {[%clk 0:01:34]}  Rf8 {[%clk 0:00:19]} 36. Kg2 {[%clk 0:01:34]}  Ng6 {[%clk 0:00:18]} 37. Kg3 {[%clk 0:01:34]}  Rf7 {[%clk 0:00:12]} 38. f5 {[%clk 0:01:35]}  Ne7 {[%clk 0:00:10]} 39. Re5 {[%clk 0:01:34]}  Ng8 {[%clk 0:00:10]} 40. Rxc5 {[%clk 0:01:32]}  Kd6 {[%clk 0:00:10]} 41. Bb4 {[%clk 0:01:29]}  Rb7 {[%clk 0:00:08]} 42. Rd5# {[%clk 0:01:28]} 1-0


[Site "https://www.chess.com"]

[Event "Titled Tuesday Blitz June 21 Late 2022"]
[White "Kravtsiv, Martyn"]
[Black "Fedoseev, Vladimir"]
[WhiteFideId "14113147"]
[BlackFideId "24130737"]
[WhiteElo "2694"]
[BlackElo "2726"]
[Result "1-0"]
[Round "03"]
[TimeControl "180+1"]
[Date "2022.06.21"]
[WhiteClock "0:00:06"]
[BlackClock "0:00:15"]

1. e4 {[%clk 0:03:00]}  e5 {[%clk 0:02:55]} 2. Nf3 {[%clk 0:03:00]}  Nc6 {[%clk 0:02:55]} 3. Nc3 {[%clk 0:03:00]}  Nf6 {[%clk 0:02:52]} 4. a4 {[%clk 0:03:01]}  Bb4 {[%clk 0:02:48]} 5. Bd3 {[%clk 0:03:00]}  Bxc3 {[%clk 0:02:46]} 6. dxc3 {[%clk 0:03:00]}  d6 {[%clk 0:02:46]} 7. O-O {[%clk 0:02:59]}  a5 {[%clk 0:02:45]} 8. Nd2 {[%clk 0:02:41]}  Ne7 {[%clk 0:02:39]} 9. Nc4 {[%clk 0:02:38]}  Ng6 {[%clk 0:02:39]} 10. f3 {[%clk 0:02:38]}  O-O {[%clk 0:02:37]} 11. Ne3 {[%clk 0:02:36]}  Nf4 {[%clk 0:02:35]} 12. Re1 {[%clk 0:02:35]}  Nxd3 {[%clk 0:02:32]} 13. cxd3 {[%clk 0:02:33]}  d5 {[%clk 0:02:31]} 14. Qc2 {[%clk 0:02:32]}  Be6 {[%clk 0:02:27]} 15. Nf1 {[%clk 0:02:24]}  dxe4 {[%clk 0:02:23]} 16. dxe4 {[%clk 0:02:23]}  Nd7 {[%clk 0:02:23]} 17. Be3 {[%clk 0:02:22]}  Qe7 {[%clk 0:02:23]} 18. Red1 {[%clk 0:02:19]}  Nc5 {[%clk 0:02:21]} 19. Qf2 {[%clk 0:02:18]}  Nb3 {[%clk 0:02:20]} 20. Ra3 {[%clk 0:02:08]}  Rfd8 {[%clk 0:02:18]} 21. Qc2 {[%clk 0:01:56]}  Rxd1 {[%clk 0:02:16]} 22. Qxd1 {[%clk 0:01:57]}  Rd8 {[%clk 0:02:16]} 23. Qc2 {[%clk 0:01:58]}  Nc5 {[%clk 0:01:58]} 24. Qf2 {[%clk 0:01:32]}  Nd3 {[%clk 0:01:56]} 25. Qc2 {[%clk 0:01:31]}  f5 {[%clk 0:01:48]} 26. exf5 {[%clk 0:01:26]}  Bxf5 {[%clk 0:01:47]} 27. Qb3+ {[%clk 0:01:25]}  Kh8 {[%clk 0:01:46]} 28. Qxb7 {[%clk 0:01:23]}  e4 {[%clk 0:01:47]} 29. f4 {[%clk 0:01:18]}  Qd6 {[%clk 0:01:41]} 30. Qb5 {[%clk 0:01:13]}  Bg4 {[%clk 0:01:37]} 31. Qg5 {[%clk 0:00:42]}  Nxb2 {[%clk 0:01:27]} 32. Bd4 {[%clk 0:00:32]}  Rg8 {[%clk 0:01:01]} 33. Rb3 {[%clk 0:00:31]}  Nc4 {[%clk 0:00:54]} 34. Qxg4 {[%clk 0:00:29]}  c5 {[%clk 0:00:53]} 35. Bf2 {[%clk 0:00:18]}  Qd3 {[%clk 0:00:52]} 36. Qg3 {[%clk 0:00:15]}  Qd1 {[%clk 0:00:50]} 37. Rb7 {[%clk 0:00:14]}  Nd2 {[%clk 0:00:50]} 38. Be1 {[%clk 0:00:13]}  Nc4 {[%clk 0:00:42]} 39. Re7 {[%clk 0:00:10]}  Qe2 {[%clk 0:00:40]} 40. Qf2 {[%clk 0:00:10]}  Qd3 {[%clk 0:00:40]} 41. Qg3 {[%clk 0:00:09]}  Qe2 {[%clk 0:00:38]} 42. h3 {[%clk 0:00:09]}  h6 {[%clk 0:00:37]} 43. Qf2 {[%clk 0:00:09]}  Qd3 {[%clk 0:00:36]} 44. Qg3 {[%clk 0:00:09]}  Qe2 {[%clk 0:00:36]} 45. Bf2 {[%clk 0:00:09]}  Nd6 {[%clk 0:00:29]} 46. Rd7 {[%clk 0:00:07]}  Qa6 {[%clk 0:00:15]} 47. Qg6 {[%clk 0:00:06]} 1-0


[Site "https://www.chess.com"]

[Event "Titled Tuesday Blitz June 21 Late 2022"]
[White "Leiva, Gianmarco"]
[Black "Taboas Rodriguez, Daniel"]
[WhiteFideId "3804399"]
[BlackFideId "2208466"]
[WhiteElo "2323"]
[BlackElo "2429"]
[Result "1-0"]
[Round "03"]
[TimeControl "180+1"]
[Date "2022.06.22"]
[WhiteClock "0:00:04"]
[BlackClock "0:00:26"]

1. e4 {[%clk 0:03:00]}  e6 {[%clk 0:02:59]} 2. d4 {[%clk 0:02:46]}  d5 {[%clk 0:03:00]} 3. Nd2 {[%clk 0:02:46]}  Nc6 {[%clk 0:03:01]} 4. Ngf3 {[%clk 0:02:39]}  Nf6 {[%clk 0:03:00]} 5. e5 {[%clk 0:02:39]}  Ne4 {[%clk 0:03:00]} 6. Bd3 {[%clk 0:02:36]}  Nxd2 {[%clk 0:02:59]} 7. Bxd2 {[%clk 0:02:37]}  Nb4 {[%clk 0:03:00]} 8. Be2 {[%clk 0:02:07]}  c5 {[%clk 0:02:59]} 9. O-O {[%clk 0:02:06]}  Be7 {[%clk 0:02:54]} 10. dxc5 {[%clk 0:02:01]}  Bxc5 {[%clk 0:02:55]} 11. c3 {[%clk 0:01:47]}  Nc6 {[%clk 0:02:53]} 12. b4 {[%clk 0:01:48]}  Be7 {[%clk 0:02:50]} 13. a4 {[%clk 0:01:44]}  Bd7 {[%clk 0:02:49]} 14. a5 {[%clk 0:01:44]}  O-O {[%clk 0:02:47]} 15. Bd3 {[%clk 0:01:44]}  f6 {[%clk 0:02:46]} 16. exf6 {[%clk 0:01:26]}  Bxf6 {[%clk 0:02:46]} 17. a6 {[%clk 0:01:24]}  bxa6 {[%clk 0:02:43]} 18. Rxa6 {[%clk 0:01:07]}  e5 {[%clk 0:02:42]} 19. Qb3 {[%clk 0:01:08]}  Ne7 {[%clk 0:02:28]} 20. Re1 {[%clk 0:01:07]}  Bc8 {[%clk 0:01:51]} 21. Ra5 {[%clk 0:00:50]}  Qd6 {[%clk 0:01:48]} 22. Ng5 {[%clk 0:00:41]}  Bxg5 {[%clk 0:01:34]} 23. Bxg5 {[%clk 0:00:41]}  Bb7 {[%clk 0:01:35]} 24. Be4 {[%clk 0:00:31]}  Kh8 {[%clk 0:00:51]} 25. Bxe7 {[%clk 0:00:28]}  Qxe7 {[%clk 0:00:52]} 26. Bxd5 {[%clk 0:00:29]}  Bxd5 {[%clk 0:00:52]} 27. Qxd5 {[%clk 0:00:24]}  Qf6 {[%clk 0:00:50]} 28. Ra2 {[%clk 0:00:16]}  Rac8 {[%clk 0:00:49]} 29. Rc2 {[%clk 0:00:09]}  e4 {[%clk 0:00:45]} 30. Qxe4 {[%clk 0:00:07]}  Rxc3 {[%clk 0:00:45]} 31. Rxc3 {[%clk 0:00:06]}  Qxc3 {[%clk 0:00:46]} 32. Qe7 {[%clk 0:00:03]}  Kg8 {[%clk 0:00:41]} 33. h3 {[%clk 0:00:03]}  Qd2 {[%clk 0:00:39]} 34. Qe6+ {[%clk 0:00:03]}  Kh8 {[%clk 0:00:39]} 35. Qe3 {[%clk 0:00:02]}  Qxb4 {[%clk 0:00:39]} 36. Ra1 {[%clk 0:00:02]}  Qb6 {[%clk 0:00:36]} 37. Rxa7 {[%clk 0:00:01]}  Qb1+ {[%clk 0:00:33]} 38. Kh2 {[%clk 0:00:02]}  Qb8+ {[%clk 0:00:33]} 39. g3 {[%clk 0:00:02]}  h6 {[%clk 0:00:32]} 40. Qd4 {[%clk 0:00:02]}  Rg8 {[%clk 0:00:32]} 41. Rd7 {[%clk 0:00:03]}  Qe8 {[%clk 0:00:32]} 42. Rd6 {[%clk 0:00:04]}  Kh7 {[%clk 0:00:31]} 43. Qd3+ {[%clk 0:00:03]}  Kh8 {[%clk 0:00:31]} 44. Rd7 {[%clk 0:00:04]}  Qe6 {[%clk 0:00:28]} 45. Qd4 {[%clk 0:00:04]}  Qg6 {[%clk 0:00:26]} 46. Rd6 {[%clk 0:00:04]}  Qf7 {[%clk 0:00:26]} 47. Rxh6# {[%clk 0:00:04]} 1-0


[Site "https://www.chess.com"]

[Event "Titled Tuesday Blitz June 21 Late 2022"]
[White "Levine, Joseph"]
[Black "Zakarian, David"]
[WhiteFideId "30940346"]
[BlackFideId "13301276"]
[WhiteElo "1802"]
[BlackElo "2457"]
[Result "1-0"]
[Round "03"]
[TimeControl "180+1"]
[Date "2022.06.22"]
[WhiteClock "0:00:02"]
[BlackClock "0:00:18"]

1. e4 {[%clk 0:03:00]}  c5 {[%clk 0:02:59]} 2. Nf3 {[%clk 0:03:00]}  Nc6 {[%clk 0:02:59]} 3. d4 {[%clk 0:03:00]}  cxd4 {[%clk 0:03:00]} 4. Nxd4 {[%clk 0:03:01]}  e5 {[%clk 0:03:00]} 5. Nb5 {[%clk 0:03:00]}  d6 {[%clk 0:03:00]} 6. c4 {[%clk 0:03:01]}  Be6 {[%clk 0:02:55]} 7. Be3 {[%clk 0:03:00]}  Nf6 {[%clk 0:02:50]} 8. N1c3 {[%clk 0:02:57]}  a6 {[%clk 0:02:50]} 9. Na3 {[%clk 0:02:57]}  g6 {[%clk 0:02:50]} 10. Nd5 {[%clk 0:02:56]}  Bg7 {[%clk 0:02:48]} 11. Bb6 {[%clk 0:02:56]}  Qc8 {[%clk 0:02:42]} 12. Nc7+ {[%clk 0:02:56]}  Ke7 {[%clk 0:02:41]} 13. Nxa8 {[%clk 0:02:56]}  Qxa8 {[%clk 0:02:41]} 14. f3 {[%clk 0:02:54]}  Bh6 {[%clk 0:02:35]} 15. Be2 {[%clk 0:02:52]}  Nd7 {[%clk 0:02:35]} 16. Bf2 {[%clk 0:02:49]}  Qc8 {[%clk 0:02:17]} 17. O-O {[%clk 0:02:46]}  Na5 {[%clk 0:02:12]} 18. b3 {[%clk 0:02:42]}  Nc6 {[%clk 0:01:57]} 19. Nc2 {[%clk 0:02:39]}  f6 {[%clk 0:01:55]} 20. Qd3 {[%clk 0:02:38]}  Nc5 {[%clk 0:01:54]} 21. Bxc5 {[%clk 0:02:37]}  dxc5 {[%clk 0:01:54]} 22. Rfd1 {[%clk 0:02:33]}  Nd4 {[%clk 0:01:53]} 23. Nxd4 {[%clk 0:02:22]}  cxd4 {[%clk 0:01:54]} 24. b4 {[%clk 0:02:18]}  Be3+ {[%clk 0:01:50]} 25. Kf1 {[%clk 0:02:17]}  h5 {[%clk 0:01:51]} 26. c5 {[%clk 0:02:16]}  h4 {[%clk 0:01:44]} 27. Qc2 {[%clk 0:02:04]}  Bf4 {[%clk 0:01:41]} 28. Kg1 {[%clk 0:01:54]}  Be3+ {[%clk 0:01:34]} 29. Kh1 {[%clk 0:01:54]}  Rd8 {[%clk 0:01:15]} 30. Bc4 {[%clk 0:01:51]}  Bxc4 {[%clk 0:01:12]} 31. Qxc4 {[%clk 0:01:52]}  Qe6 {[%clk 0:01:11]} 32. Qd3 {[%clk 0:01:28]}  g5 {[%clk 0:01:01]} 33. h3 {[%clk 0:01:18]}  Qc6 {[%clk 0:00:52]} 34. a4 {[%clk 0:01:13]}  a5 {[%clk 0:00:51]} 35. Qc4 {[%clk 0:00:57]}  Rc8 {[%clk 0:00:45]} 36. Rdb1 {[%clk 0:00:45]}  Rc7 {[%clk 0:00:37]} 37. bxa5 {[%clk 0:00:39]}  Qxc5 {[%clk 0:00:33]} 38. Qxc5+ {[%clk 0:00:39]}  Rxc5 {[%clk 0:00:33]} 39. Rxb7+ {[%clk 0:00:39]}  Ke6 {[%clk 0:00:31]} 40. a6 {[%clk 0:00:25]}  Ra5 {[%clk 0:00:30]} 41. a7 {[%clk 0:00:24]}  d3 {[%clk 0:00:30]} 42. Rd1 {[%clk 0:00:19]}  d2 {[%clk 0:00:27]} 43. Rb3 {[%clk 0:00:06]}  Bf4 {[%clk 0:00:26]} 44. Rb6+ {[%clk 0:00:05]}  Ke7 {[%clk 0:00:24]} 45. Rb7+ {[%clk 0:00:06]}  Ke6 {[%clk 0:00:24]} 46. Kg1 {[%clk 0:00:03]}  Rxa4 {[%clk 0:00:23]} 47. Kf1 {[%clk 0:00:03]}  Be3 {[%clk 0:00:22]} 48. Ke2 {[%clk 0:00:03]}  Bxa7 {[%clk 0:00:21]} 49. Rxd2 {[%clk 0:00:03]}  Bd4 {[%clk 0:00:22]} 50. Rc2 {[%clk 0:00:02]}  Ra6 {[%clk 0:00:20]} 51. Rbc7 {[%clk 0:00:03]}  Ra3 {[%clk 0:00:18]} 52. R2c6# {[%clk 0:00:02]} 1-0


[Site "https://www.chess.com"]

[Event "Titled Tuesday Blitz June 21 Late 2022"]
[White "Livaic, Leon"]
[Black "So, Wesley"]
[WhiteFideId "14531534"]
[BlackFideId "5202213"]
[WhiteElo "2540"]
[BlackElo "2742"]
[Result "0-1"]
[Round "03"]
[TimeControl "180+1"]
[Date "2022.06.21"]
[WhiteClock "0:00:03"]
[BlackClock "0:00:05"]

1. d4 {[%clk 0:03:00]}  Nf6 {[%clk 0:02:59]} 2. c4 {[%clk 0:03:01]}  e6 {[%clk 0:02:58]} 3. Nf3 {[%clk 0:03:00]}  d5 {[%clk 0:02:58]} 4. Nc3 {[%clk 0:03:01]}  c6 {[%clk 0:02:55]} 5. Bg5 {[%clk 0:03:00]}  h6 {[%clk 0:02:55]} 6. Bxf6 {[%clk 0:03:00]}  Qxf6 {[%clk 0:02:56]} 7. Qc2 {[%clk 0:03:00]}  Nd7 {[%clk 0:02:33]} 8. e4 {[%clk 0:03:00]}  dxe4 {[%clk 0:02:33]} 9. Qxe4 {[%clk 0:03:01]}  g6 {[%clk 0:02:31]} 10. Bd3 {[%clk 0:03:01]}  Bg7 {[%clk 0:02:32]} 11. O-O {[%clk 0:03:01]}  O-O {[%clk 0:02:32]} 12. Rfe1 {[%clk 0:03:01]}  c5 {[%clk 0:02:23]} 13. d5 {[%clk 0:02:54]}  Nb6 {[%clk 0:02:22]} 14. Rad1 {[%clk 0:02:41]}  exd5 {[%clk 0:02:20]} 15. cxd5 {[%clk 0:02:41]}  Bd7 {[%clk 0:02:10]} 16. Qe3 {[%clk 0:02:21]}  c4 {[%clk 0:02:03]} 17. Bf1 {[%clk 0:02:14]}  Rfe8 {[%clk 0:02:02]} 18. Qc5 {[%clk 0:02:12]}  Bg4 {[%clk 0:01:55]} 19. d6 {[%clk 0:01:55]}  Rxe1 {[%clk 0:01:44]} 20. Rxe1 {[%clk 0:01:54]}  Rc8 {[%clk 0:01:44]} 21. Qa3 {[%clk 0:01:41]}  Bxf3 {[%clk 0:01:40]} 22. gxf3 {[%clk 0:01:42]}  Rd8 {[%clk 0:01:39]} 23. Qxa7 {[%clk 0:01:40]}  Qxd6 {[%clk 0:01:36]} 24. Qxb7 {[%clk 0:01:40]}  Rb8 {[%clk 0:01:30]} 25. Qe7 {[%clk 0:01:35]}  Qd2 {[%clk 0:01:24]} 26. Re2 {[%clk 0:01:32]}  Qf4 {[%clk 0:01:21]} 27. Qe3 {[%clk 0:01:21]}  Qf5 {[%clk 0:01:08]} 28. f4 {[%clk 0:01:14]}  Nd7 {[%clk 0:01:04]} 29. Bh3 {[%clk 0:01:12]}  Qd3 {[%clk 0:00:58]} 30. Bxd7 {[%clk 0:01:12]}  Qxd7 {[%clk 0:00:57]} 31. Qe4 {[%clk 0:01:09]}  Qg4+ {[%clk 0:00:51]} 32. Qg2 {[%clk 0:01:05]}  Qh5 {[%clk 0:00:47]} 33. Qe4 {[%clk 0:00:51]}  Qg4+ {[%clk 0:00:44]} 34. Kf1 {[%clk 0:00:51]}  Bxc3 {[%clk 0:00:43]} 35. bxc3 {[%clk 0:00:51]}  Qh3+ {[%clk 0:00:44]} 36. Kg1 {[%clk 0:00:49]}  Qg4+ {[%clk 0:00:38]} 37. Kf1 {[%clk 0:00:49]}  Rd8 {[%clk 0:00:38]} 38. Re1 {[%clk 0:00:37]}  Qh3+ {[%clk 0:00:35]} 39. Kg1 {[%clk 0:00:34]}  Qxc3 {[%clk 0:00:36]} 40. f5 {[%clk 0:00:34]}  g5 {[%clk 0:00:35]} 41. f6 {[%clk 0:00:33]}  Qxf6 {[%clk 0:00:35]} 42. Qxc4 {[%clk 0:00:34]}  Rd2 {[%clk 0:00:33]} 43. Rf1 {[%clk 0:00:31]}  h5 {[%clk 0:00:26]} 44. a4 {[%clk 0:00:30]}  Rd4 {[%clk 0:00:25]} 45. Qc8+ {[%clk 0:00:28]}  Kg7 {[%clk 0:00:25]} 46. h3 {[%clk 0:00:18]}  Rxa4 {[%clk 0:00:24]} 47. Re1 {[%clk 0:00:17]}  Ra2 {[%clk 0:00:24]} 48. Qc5 {[%clk 0:00:17]}  Rd2 {[%clk 0:00:16]} 49. Re8 {[%clk 0:00:15]}  Kg6 {[%clk 0:00:09]} 50. Rg8+ {[%clk 0:00:15]}  Kh6 {[%clk 0:00:08]} 51. Rb8 {[%clk 0:00:14]}  Rd6 {[%clk 0:00:06]} 52. Qe3 {[%clk 0:00:09]}  Re6 {[%clk 0:00:06]} 53. Qd3 {[%clk 0:00:05]}  Kg7 {[%clk 0:00:05]} 54. Rb1 {[%clk 0:00:04]}  Qe5 {[%clk 0:00:05]} 55. Rf1 {[%clk 0:00:03]}  h4 {[%clk 0:00:05]} 56. Qf3 {[%clk 0:00:03]}  Rf6 {[%clk 0:00:05]} 57. Qg2 {[%clk 0:00:04]}  Qf5 {[%clk 0:00:05]} 58. Re1 {[%clk 0:00:04]}  Rg6 {[%clk 0:00:05]} 59. Re4 {[%clk 0:00:04]}  Kh6 {[%clk 0:00:04]} 60. Rg4 {[%clk 0:00:05]}  f6 {[%clk 0:00:04]} 61. Kh2 {[%clk 0:00:04]}  Rg7 {[%clk 0:00:05]} 62. f4 {[%clk 0:00:03]}  Re7 {[%clk 0:00:05]} 63. fxg5+ {[%clk 0:00:03]}  fxg5 {[%clk 0:00:05]} 64. Rd4 {[%clk 0:00:02]}  Qe5+ {[%clk 0:00:06]} 65. Kh1 {[%clk 0:00:02]}  Qxd4 {[%clk 0:00:06]} 66. Qf2 {[%clk 0:00:03]}  Qe4+ {[%clk 0:00:05]} 0-1


[Site "https://www.chess.com"]

[Event "Titled Tuesday Blitz June 21 Late 2022"]
[White "Luo, Terry"]
[Black "Do Valle Cardoso, Lucas"]
[WhiteFideId "30931045"]
[BlackFideId "2163144"]
[WhiteElo "2024"]
[BlackElo "2277"]
[Result "1-0"]
[Round "03"]
[TimeControl "180+1"]
[Date "2022.06.22"]
[WhiteClock "0:02:07"]
[BlackClock "0:00:11"]

1. d4 {[%clk 0:03:00]}  d5 {[%clk 0:02:59]} 2. c4 {[%clk 0:03:00]}  e6 {[%clk 0:02:59]} 3. Nf3 {[%clk 0:03:00]}  Nf6 {[%clk 0:03:00]} 4. g3 {[%clk 0:03:00]}  Be7 {[%clk 0:03:00]} 5. Bg2 {[%clk 0:02:59]}  O-O {[%clk 0:03:00]} 6. O-O {[%clk 0:03:00]}  dxc4 {[%clk 0:03:00]} 7. Qc2 {[%clk 0:03:01]}  a6 {[%clk 0:02:59]} 8. a4 {[%clk 0:03:02]}  Nc6 {[%clk 0:02:53]} 9. Qxc4 {[%clk 0:03:01]}  Nb4 {[%clk 0:02:29]} 10. Bd2 {[%clk 0:02:57]}  b5 {[%clk 0:02:27]} 11. Qb3 {[%clk 0:02:50]}  bxa4 {[%clk 0:01:59]} 12. Rxa4 {[%clk 0:02:50]}  Nbd5 {[%clk 0:01:37]} 13. Nc3 {[%clk 0:02:48]}  Bd7 {[%clk 0:01:37]} 14. Raa1 {[%clk 0:02:46]}  Rb8 {[%clk 0:01:36]} 15. Qc2 {[%clk 0:02:44]}  Nb4 {[%clk 0:01:35]} 16. Qc1 {[%clk 0:02:44]}  Bc6 {[%clk 0:01:14]} 17. Bf4 {[%clk 0:02:40]}  Nbd5 {[%clk 0:01:10]} 18. Nxd5 {[%clk 0:02:37]}  Bxd5 {[%clk 0:01:10]} 19. Bxc7 {[%clk 0:02:36]}  Qd7 {[%clk 0:01:04]} 20. Bxb8 {[%clk 0:02:36]}  Rxb8 {[%clk 0:01:04]} 21. Ne5 {[%clk 0:02:36]}  Qb5 {[%clk 0:01:05]} 22. Bxd5 {[%clk 0:02:35]}  Nxd5 {[%clk 0:01:04]} 23. Qc4 {[%clk 0:02:35]}  Qxb2 {[%clk 0:00:52]} 24. Rfb1 {[%clk 0:02:28]}  Qxb1+ {[%clk 0:00:52]} 25. Rxb1 {[%clk 0:02:29]}  Rxb1+ {[%clk 0:00:53]} 26. Kg2 {[%clk 0:02:29]}  g6 {[%clk 0:00:20]} 27. Qxa6 {[%clk 0:02:24]}  Rb6 {[%clk 0:00:18]} 28. Qa8+ {[%clk 0:02:24]}  Kg7 {[%clk 0:00:19]} 29. e4 {[%clk 0:02:24]}  Nc3 {[%clk 0:00:18]} 30. Qe8 {[%clk 0:02:23]}  Rb7 {[%clk 0:00:17]} 31. Qxf7+ {[%clk 0:02:22]}  Kh6 {[%clk 0:00:17]} 32. Ng4+ {[%clk 0:02:18]}  Kg5 {[%clk 0:00:18]} 33. f4+ {[%clk 0:02:07]}  Kxg4 {[%clk 0:00:15]} 34. Qxe6+ {[%clk 0:02:07]}  Kh5 {[%clk 0:00:14]} 35. Qh3+ {[%clk 0:02:07]}  Bh4 {[%clk 0:00:11]} 36. Qxh4# {[%clk 0:02:07]} 1-0


[Site "https://www.chess.com"]